fUST/lending_fUST_20250210
["ID","MTS","AMOUNT","RATE_DAILY","PERIOD"]
[352512924,1739145056553,-500.0,0.0001178,2]
[352512925,1739145056563,-500.0,0.0001178,2]
[352512926,1739145056572,-500.0,0.0001178,2]
[352512927,1739145056582,-500.0,0.0001178,2]
[352512928,1739145056591,-504.80449704,0.0001178,2]
[352512929,1739145056601,-500.0,0.0001178,2]
[352512930,1739145056610,-500.0,0.0001178,2]
[352512931,1739145056620,-500.0,0.0001178,2]
[352512932,1739145056629,-1670.97,0.0001178,2]
[352512933,1739145056639,-592.46,0.0001178,2]
[352512934,1739145056648,-500.0,0.0001178,2]
[352512935,1739145056658,-151.0,0.000118,2]
[352512936,1739145056668,-250.71090981,0.00011813,2]
[352512937,1739145056677,-407.84476064,0.00011815,2]
[352512938,1739145056687,-500.0,0.00011838,2]
[352512939,1739145056696,-501.97350522,0.00011838,2]
[352512940,1739145056705,-626.02346666,0.00011838,2]
[352512941,1739145056715,-460.57542094,0.0001184,2]
[352512942,1739145056724,-525.28922567,0.00011873,2]
[352512943,1739145056733,-160.66464245,0.00011873,2]
[352512944,1739145056743,-500.0,0.00011873,2]
[352512945,1739145056752,-500.0,0.00011873,2]
[352512946,1739145056762,-500.0,0.00011873,2]
[352512947,1739145056771,-151.0,0.000119,2]
[352512948,1739145056781,-500.0,0.00011917,2]
[352512949,1739145056790,-500.0,0.00011917,2]
[352512950,1739145056799,-602.05,0.00011917,2]
[352512951,1739145056810,-160.79,0.00011917,2]
[352512952,1739145056820,-500.0,0.00011917,2]
[352512953,1739145056829,-500.0,0.00011917,2]
[352512954,1739145056839,-500.0,0.00011917,2]
[352512955,1739145056848,-500.0,0.00011917,2]
[352512956,1739145056858,-500.0,0.00011917,2]
[352512957,1739145056869,-500.0,0.00011917,2]
[352512958,1739145056879,-500.0,0.00011917,2]
[352512959,1739145056890,-518.2,0.00011917,2]
[352512960,1739145056900,-500.0,0.00011917,2]
[352512961,1739145056910,-609.05,0.00011917,2]
[352512962,1739145056920,-980.64,0.00011917,2]
[352512963,1739145056929,-500.0,0.00011917,2]
[352512964,1739145056941,-4138.56,0.00011917,2]
[352512965,1739145056951,-3347.12,0.00011917,2]
[352512966,1739145056961,-500.0,0.00011917,2]
[352512967,1739145056971,-1077.38,0.00011917,2]
[352512968,1739145056980,-500.0,0.00011917,2]
[352512969,1739145056990,-1692.6,0.00011917,2]
[352512970,1739145057000,-207.63,0.00011917,2]
[352512971,1739145057009,-1270.45,0.00011917,2]
[352512972,1739145057019,-500.0,0.00011917,2]
[352512973,1739145057029,-588.36,0.00011917,2]
[352512974,1739145057039,-15368.01,0.00011917,2]
[352512975,1739145057049,-390.88,0.00011917,2]
[352512976,1739145057059,-500.0,0.00011917,2]
[352512977,1739145057068,-500.0,0.00011917,2]
[352512978,1739145057078,-500.0,0.00011917,2]
[352512979,1739145057087,-4743.05,0.00011917,2]
[352512980,1739145057096,-500.0,0.00011917,2]
[352512981,1739145057106,-712.27,0.00011917,2]
[352512982,1739145057115,-500.0,0.00011917,2]
[352512983,1739145057125,-500.0,0.00011917,2]
[352512984,1739145057136,-1213.29,0.00011917,2]
[352512985,1739145057146,-500.0,0.00011917,2]
[352512986,1739145057156,-522.27,0.00011917,2]
[352512987,1739145057165,-500.0,0.00011917,2]
[352512988,1739145057174,-500.0,0.00011917,2]
[352512989,1739145057183,-500.0,0.00011917,2]
[352512990,1739145057193,-431.54377881,0.00011917,2]
[352512991,1739145057203,-1282.22,0.00011917,2]
[352512992,1739145057212,-500.0,0.00011917,2]
[352512993,1739145057222,-500.0,0.00011917,2]
[352512994,1739145057231,-1561.77,0.00011917,2]
[352512995,1739145057240,-500.0,0.00011917,2]
[352512996,1739145057250,-690.2,0.00011917,2]
[352512997,1739145057259,-500.0,0.00011917,2]
[352512998,1739145057268,-500.0,0.00011917,2]
[352512999,1739145057278,-500.0,0.00011917,2]
[352513000,1739145057287,-500.0,0.00011917,2]
[352513001,1739145057297,-155.04,0.00011917,2]
[352513002,1739145057306,-500.0,0.00011917,2]
[352513003,1739145057315,-1670.97,0.00011917,2]
[352513004,1739145057324,-420.0,0.0001204,2]
[352513005,1739145057335,-500.0,0.00012054,2]
[352513006,1739145057344,-500.0,0.00012054,2]
[352513007,1739145057354,-349.12,0.00012054,2]
[352513008,1739145057363,-500.0,0.00012054,2]
[352513009,1739145057372,-161.42,0.00012054,2]
[352513010,1739145057382,-500.0,0.00012054,2]
[352513011,1739145057393,-457.28,0.00012054,2]
[352513012,1739145057402,-559.1,0.00012054,2]
[352513013,1739145057412,-500.0,0.00012054,2]
[352513014,1739145057422,-500.0,0.00012054,2]
[352513015,1739145057431,-609.05,0.00012054,2]
[352513016,1739145057441,-980.64,0.00012054,2]
[352513017,1739145057452,-500.0,0.00012054,2]
[352513018,1739145057462,-1989.53868904,0.00012054,2]
[352513019,1739145057834,-500.0,0.00010958,2]
[352513020,1739145057844,-2149.02131096,0.00012054,2]
[352513021,1739145057854,-3347.12,0.00012054,2]
[352513022,1739145057864,-500.0,0.00012054,2]
[352513023,1739145057878,-1077.38,0.00012054,2]
[352513024,1739145057887,-500.0,0.00012054,2]
[352513025,1739145057897,-1692.6,0.00012054,2]
[352513026,1739145057906,-1270.45,0.00012054,2]
[352513027,1739145057918,-500.0,0.00012054,2]
[352513028,1739145057927,-588.36,0.00012054,2]
[352513029,1739145057937,-15368.01,0.00012054,2]
[352513030,1739145057947,-500.0,0.00012054,2]
[352513031,1739145057958,-500.0,0.00012054,2]
[352513032,1739145057967,-500.0,0.00012054,2]
[352513033,1739145057977,-60.85641778,0.00012054,2]
[352513034,1739145058110,-500.0,0.00010958,2]
[352513035,1739145058120,-160.08,0.00010958,2]
[352513036,1739145058129,-500.0,0.00011095,2]
[352513037,1739145058140,-500.0,0.00011095,2]
[352513038,1739145058149,-500.0,0.00011232,2]
[352513039,1739145058159,-500.0,0.00011232,2]
[352513040,1739145058168,-500.0,0.00011369,2]
[352513041,1739145058178,-500.0,0.00011369,2]
[352513042,1739145058187,-500.0,0.00011506,2]
[352513043,1739145058197,-500.0,0.00011506,2]
[352513044,1739145058206,-330.06,0.00011643,2]
[352513045,1739145058215,-500.0,0.00011643,2]
[352513046,1739145058225,-4682.19358222,0.00012054,2]
[352513047,1739145058235,-500.0,0.00012054,2]
[352513048,1739145058244,-712.27,0.00012054,2]
[352513049,1739145058254,-500.0,0.00012054,2]
[352513050,1739145058264,-500.0,0.00012054,2]
[352513051,1739145058273,-1213.29,0.00012054,2]
[352513052,1739145058283,-475.19,0.00012054,2]
[352513053,1739145058295,-522.27,0.00012054,2]
[352513054,1739145058305,-500.0,0.00012054,2]
[352513055,1739145058315,-500.0,0.00012054,2]
[352513056,1739145058325,-500.0,0.00012054,2]
[352513057,1739145058334,-1282.22,0.00012054,2]
[352513058,1739145058344,-500.0,0.00012054,2]
[352513059,1739145058353,-500.0,0.00012054,2]
[352513060,1739145058363,-1561.77,0.00012054,2]
[352513061,1739145058372,-500.0,0.00012054,2]
[352513062,1739145058382,-690.2,0.00012054,2]
[352513063,1739145058393,-500.0,0.00012054,2]
[352513064,1739145058403,-500.0,0.00012054,2]
[352513065,1739145058412,-500.0,0.00012054,2]
[352513066,1739145058422,-500.0,0.00012054,2]
[352513067,1739145058432,-500.0,0.00012054,2]
[352513068,1739145058441,-1670.97,0.00012054,2]
[352513069,1739145058451,-151.0,0.00012054,2]
[352513070,1739145058460,-374.5,0.00012191,2]
[352513071,1739145058470,-500.0,0.00012191,2]
[352513072,1739145058479,-500.0,0.00012191,2]
[352513073,1739145058489,-500.0,0.00012191,2]
[352513074,1739145058498,-500.0,0.00012191,2]
[352513075,1739145058507,-500.0,0.00012191,2]
[352513076,1739145058517,-609.05,0.00012191,2]
[352513077,1739145058526,-980.64,0.00012191,2]
[352513078,1739145058537,-469.81,0.00012191,2]
[352513079,1739145058546,-4138.56,0.00012191,2]
[352513080,1739145058556,-3347.12,0.00012191,2]
[352513081,1739145058565,-500.0,0.00012191,2]
[352513082,1739145058575,-1077.38,0.00012191,2]
[352513083,1739145058585,-500.0,0.00012191,2]
[352513084,1739145058595,-1692.6,0.00012191,2]
[352513085,1739145058605,-1270.45,0.00012191,2]
[352513086,1739145058615,-500.0,0.00012191,2]
[352513087,1739145058624,-588.36,0.00012191,2]
[352513088,1739145058635,-15368.01,0.00012191,2]
[352513089,1739145058646,-500.0,0.00012191,2]
[352513090,1739145058655,-500.0,0.00012191,2]
[352513091,1739145058664,-500.0,0.00012191,2]
[352513092,1739145058743,-4743.05,0.00012191,2]
[352513093,1739145058754,-500.0,0.00012191,2]
[352513094,1739145058764,-712.27,0.00012191,2]
[352513095,1739145058774,-500.0,0.00012191,2]
[352513096,1739145058783,-500.0,0.00012191,2]
[352513097,1739145058792,-1213.29,0.00012191,2]
[352513098,1739145058802,-522.27,0.00012191,2]
[352513099,1739145058812,-500.0,0.00012191,2]
[352513100,1739145058821,-500.0,0.00012191,2]
[352513101,1739145058831,-500.0,0.00012191,2]
[352513102,1739145058840,-1282.22,0.00012191,2]
[352513103,1739145058849,-500.0,0.00012191,2]
[352513104,1739145058859,-232.1578468,0.00012191,2]
[352513105,1739145058872,-1561.77,0.00012191,2]
[352513106,1739145058882,-500.0,0.00012191,2]
[352513107,1739145058892,-690.2,0.00012191,2]
[352513108,1739145058902,-500.0,0.00012191,2]
[352513109,1739145058912,-500.0,0.00012191,2]
[352513110,1739145058921,-500.0,0.00012191,2]
[352513111,1739145058932,-500.0,0.00012191,2]
[352513112,1739145058942,-500.0,0.00012191,2]
[352513113,1739145058952,-1670.97,0.00012191,2]
[352513114,1739145058961,-1000.0,0.00012227,2]
[352513115,1739145058971,-3146.08093611,0.00012228,2]
[352513116,1739145058980,-500.0,0.00012282,2]
[352513117,1739145058990,-500.0,0.00012328,2]
[352513118,1739145058999,-500.0,0.00012328,2]
[352513119,1739145059009,-500.0,0.00012328,2]
[352513120,1739145059018,-500.0,0.00012328,2]
[352513121,1739145059027,-500.0,0.00012328,2]
[352513122,1739145059038,-609.05,0.00012328,2]
[352513123,1739145059048,-980.64,0.00012328,2]
[352513124,1739145059058,-4138.56,0.00012328,2]
[352513125,1739145059068,-3347.12,0.00012328,2]
[352513126,1739145059078,-500.0,0.00012328,2]
[352513127,1739145059089,-1077.38,0.00012328,2]
[352513128,1739145059098,-559.3,0.00012328,2]
[352513129,1739145059108,-1692.6,0.00012328,2]
[352513130,1739145059117,-1270.45,0.00012328,2]
[352513131,1739145059127,-500.0,0.00012328,2]
[352513132,1739145059137,-588.36,0.00012328,2]
[352513133,1739145059147,-15368.01,0.00012328,2]
[352513134,1739145059156,-500.0,0.00012328,2]
[352513135,1739145059166,-500.0,0.00012328,2]
[352513136,1739145059175,-500.0,0.00012328,2]
[352513137,1739145059185,-4743.05,0.00012328,2]
[352513138,1739145059195,-500.0,0.00012328,2]
[352513139,1739145059205,-712.27,0.00012328,2]
[352513140,1739145059215,-500.0,0.00012328,2]
[352513141,1739145059225,-500.0,0.00012328,2]
[352513142,1739145059234,-1213.29,0.00012328,2]
[352513143,1739145059244,-522.27,0.00012328,2]
[352513144,1739145059253,-500.0,0.00012328,2]
[352513145,1739145059263,-500.0,0.00012328,2]
[352513146,1739145059273,-312.0,0.00012328,2]
[352513147,1739145059283,-1282.22,0.00012328,2]
[352513148,1739145059297,-500.0,0.00012328,2]
[352513149,1739145059319,-1561.77,0.00012328,2]
[352513150,1739145059335,-151.0,0.00012328,2]
[352513151,1739145059354,-151.0,0.00012328,2]
[352513152,1739145059372,-500.0,0.00012328,2]
[352513153,1739145059391,-258.06993,0.00012328,2]
[352513154,1739145059407,-690.2,0.00012328,2]
[352513155,1739145059425,-500.0,0.00012328,2]
[352513156,1739145059440,-500.0,0.00012328,2]
[352513157,1739145059456,-151.0,0.00012328,2]
[352513158,1739145059475,-500.0,0.00012328,2]
[352513159,1739145059492,-500.0,0.00012328,2]
[352513160,1739145059508,-500.0,0.00012328,2]
[352513161,1739145059521,-151.0,0.00012328,2]
[352513162,1739145059540,-1670.97,0.00012328,2]
[352513163,1739145059555,-501.06497912,0.00012421,2]
[352513164,1739145059571,-1000.0,0.00012421,2]
[352513165,1739145059584,-640.3,0.00012465,2]
[352513166,1739145059598,-399.43687546,0.00012465,2]
[352513167,1739145059612,-500.0,0.00012465,2]
[352513168,1739145059627,-500.0,0.00012465,2]
[352513169,1739145059640,-500.0,0.00012465,2]
[352513170,1739145059655,-609.05,0.00012465,2]
[352513171,1739145059669,-980.64,0.00012465,2]
[352513172,1739145059683,-4138.56,0.00012465,2]
[352513173,1739145059697,-3347.12,0.00012465,2]
[352513174,1739145059711,-500.0,0.00012465,2]
[352513175,1739145059725,-1077.38,0.00012465,2]
[352513176,1739145059739,-1692.6,0.00012465,2]
[352513177,1739145059753,-1270.45,0.00012465,2]
[352513178,1739145059768,-500.0,0.00012465,2]
[352513179,1739145059779,-588.36,0.00012465,2]
[352513180,1739145059789,-11356.37109114,0.00012465,2]
[352513181,1739145059802,-1292.22,0.00012465,2]
[352513182,1739145059818,-2719.41890886,0.00012465,2]
[352513183,1739145059828,-500.0,0.00012465,2]
[352513184,1739145059838,-500.0,0.00012465,2]
[352513185,1739145059847,-500.0,0.00012465,2]
[352513186,1739145059856,-2962.30194657,0.00012465,2]
[352513187,1739145059873,-1780.74805343,0.00012465,2]
[352513188,1739145059884,-332.48,0.00012465,2]
[352513189,1739145059894,-712.27,0.00012465,2]
[352513190,1739145059903,-500.0,0.00012465,2]
[352513191,1739145059914,-500.0,0.00012465,2]
[352513192,1739145059923,-1213.29,0.00012465,2]
[352513193,1739145059933,-522.27,0.00012465,2]
[352513194,1739145059944,-500.0,0.00012465,2]
[352513195,1739145059954,-151.0,0.00012465,2]
[352513196,1739145059964,-500.0,0.00012465,2]
[352513197,1739145059973,-1282.22,0.00012465,2]
[352513198,1739145059983,-500.0,0.00012465,2]
[352513199,1739145059992,-223.74675483,0.00012465,2]
[352513200,1739145060004,-28.97241017,0.00012465,2]
[352513201,1739145060014,-252.719165,0.00012465,2]
[352513202,1739145060025,-198.0,0.00012465,2]
[352513203,1739145060228,-1561.77,0.00012465,2]
[352513204,1739145060244,-500.0,0.00012465,2]
[352513205,1739145060258,-690.2,0.00012465,2]
[352513206,1739145060268,-500.0,0.00012465,2]
[352513207,1739145060279,-151.0,0.00012465,2]
[352513208,1739145060288,-500.0,0.00012465,2]
[352513209,1739145060298,-500.0,0.00012465,2]
[352513210,1739145060308,-500.0,0.00012465,2]
[352513211,1739145060318,-500.0,0.00012465,2]
[352513212,1739145060327,-1670.97,0.00012465,2]
[352513213,1739145060337,-296.57295787,0.00012526,2]
[352513214,1739145060347,-500.0,0.00012602,2]
[352513215,1739145060356,-617.1,0.00012602,2]
[352513216,1739145060366,-159.24,0.00012602,2]
[352513217,1739145060375,-609.05,0.00012602,2]
[352513218,1739145060386,-980.64,0.00012602,2]
[352513219,1739145060396,-3028.70734154,0.00012602,2]
[352513220,1739145060413,-1109.85265846,0.00012602,2]
[352513221,1739145060424,-3347.12,0.00012602,2]
[352513222,1739145060435,-500.0,0.00012602,2]
[352513223,1739145060445,-1077.38,0.00012602,2]
[352513224,1739145060455,-1692.6,0.00012602,2]
[352513225,1739145060465,-1270.45,0.00012602,2]
[352513226,1739145060476,-381.84,0.00012602,2]
[352513227,1739145060486,-588.36,0.00012602,2]
[352513228,1739145060496,-15368.01,0.00012602,2]
[352513229,1739145060508,-500.0,0.00012602,2]
[352513230,1739145060518,-500.0,0.00012602,2]
[352513231,1739145060528,-500.0,0.00012602,2]
[352513232,1739145060537,-4743.05,0.00012602,2]
[352513233,1739145060547,-712.27,0.00012602,2]
[352513234,1739145060556,-212.056284,0.00012602,2]
[352513235,1739145060565,-164.04,0.00012602,2]
[352513236,1739145060574,-500.0,0.00012602,2]
[352513237,1739145060584,-1213.29,0.00012602,2]
[352513238,1739145060594,-522.27,0.00012602,2]
[352513239,1739145060603,-500.0,0.00012602,2]
[352513240,1739145060613,-500.0,0.00012602,2]
[352513241,1739145060622,-1282.22,0.00012602,2]
[352513242,1739145060631,-500.0,0.00012602,2]
[352513243,1739145060640,-1561.77,0.00012602,2]
[352513244,1739145060650,-500.0,0.00012602,2]
[352513245,1739145060659,-690.2,0.00012602,2]
[352513246,1739145060669,-500.0,0.00012602,2]
[352513247,1739145060680,-500.0,0.00012602,2]
[352513248,1739145060691,-500.0,0.00012602,2]
[352513249,1739145060703,-500.0,0.00012602,2]
[352513250,1739145060714,-500.0,0.00012602,2]
[352513251,1739145060723,-1670.97,0.00012602,2]
[352513252,1739145060733,-500.0,0.00012739,2]
[352513253,1739145060742,-609.05,0.00012739,2]
[352513254,1739145060753,-980.64,0.00012739,2]
[352513255,1739145060762,-4138.56,0.00012739,2]
[352513256,1739145060772,-151.0,0.00012739,2]
[352513257,1739145060781,-151.0,0.00012739,2]
[352513258,1739145060792,-3347.12,0.00012739,2]
[352513259,1739145060803,-500.0,0.00012739,2]
[352513260,1739145060813,-1077.38,0.00012739,2]
[352513261,1739145060822,-151.0,0.00012739,2]
[352513262,1739145060831,-151.0,0.00012739,2]
[352513263,1739145060841,-1692.6,0.00012739,2]
[352513264,1739145060850,-174.145676,0.00012739,2]
[352513265,1739145060860,-151.0,0.00012739,2]
[352513266,1739145060872,-1270.45,0.00012739,2]
[352513267,1739145060881,-151.0,0.00012739,2]
[352513268,1739145060891,-588.36,0.00012739,2]
[352513269,1739145060900,-151.0,0.00012739,2]
[352513270,1739145060910,-15368.01,0.00012739,2]
[352513271,1739145060920,-500.0,0.00012739,2]
[352513272,1739145060929,-500.0,0.00012739,2]
[352513273,1739145060940,-500.0,0.00012739,2]
[352513274,1739145060950,-4743.05,0.00012739,2]
[352513275,1739145060959,-712.27,0.00012739,2]
[352513276,1739145060968,-500.0,0.00012739,2]
[352513277,1739145060977,-1213.29,0.00012739,2]
[352513278,1739145060987,-522.27,0.00012739,2]
[352513279,1739145060997,-151.0,0.00012739,2]
[352513280,1739145061008,-151.0,0.00012739,2]
[352513281,1739145061017,-500.0,0.00012739,2]
[352513282,1739145061027,-151.0,0.00012739,2]
[352513283,1739145061037,-151.0,0.00012739,2]
[352513284,1739145061046,-209.655534,0.00012739,2]
[352513285,1739145061055,-500.0,0.00012739,2]
[352513286,1739145061065,-1282.22,0.00012739,2]
[352513287,1739145061074,-500.0,0.00012739,2]
[352513288,1739145061083,-1561.77,0.00012739,2]
[352513289,1739145061092,-500.0,0.00012739,2]
[352513290,1739145061101,-690.2,0.00012739,2]
[352513291,1739145061110,-500.0,0.00012739,2]
[352513292,1739145061120,-500.0,0.00012739,2]
[352513293,1739145061130,-516.48,0.00012739,2]
[352513294,1739145061141,-500.0,0.00012739,2]
[352513295,1739145061150,-500.0,0.00012739,2]
[352513296,1739145061160,-1670.97,0.00012739,2]
[352513297,1739145061169,-3146.08093607,0.00012767,2]
[352513298,1739145061179,-247.02139346,0.00012795,2]
[352513299,1739145061188,-500.0,0.00012876,2]
[352513300,1739145061197,-609.05,0.00012876,2]
[352513301,1739145061207,-151.0,0.00012876,2]
[352513302,1739145061216,-151.0,0.00012876,2]
[352513303,1739145061225,-151.0,0.00012876,2]
[352513304,1739145061235,-980.64,0.00012876,2]
[352513305,1739145061244,-4138.56,0.00012876,2]
[352513306,1739145061254,-3347.12,0.00012876,2]
[352513307,1739145061263,-500.0,0.00012876,2]
[352513308,1739145061273,-1077.38,0.00012876,2]
[352513309,1739145061283,-1692.6,0.00012876,2]
[352513310,1739145061292,-1270.45,0.00012876,2]
[352513311,1739145061302,-588.36,0.00012876,2]
[352513312,1739145061311,-15368.01,0.00012876,2]
[352513313,1739145061321,-500.0,0.00012876,2]
[352513314,1739145061331,-500.0,0.00012876,2]
[352513315,1739145061341,-607.28,0.00012876,2]
[352513316,1739145061351,-4743.05,0.00012876,2]
[352513317,1739145061360,-712.27,0.00012876,2]
[352513318,1739145061369,-500.0,0.00012876,2]
[352513319,1739145061379,-1213.29,0.00012876,2]
[352513320,1739145061388,-522.27,0.00012876,2]
[352513321,1739145061399,-404.06,0.00012876,2]
[352513322,1739145061408,-540.86,0.00012876,2]
[352513323,1739145061418,-1282.22,0.00012876,2]
[352513324,1739145061427,-500.0,0.00012876,2]
[352513325,1739145061437,-1561.77,0.00012876,2]
[352513326,1739145061446,-500.0,0.00012876,2]
[352513327,1739145061455,-690.2,0.00012876,2]
[352513328,1739145061465,-500.0,0.00012876,2]
[352513329,1739145061474,-500.0,0.00012876,2]
[352513330,1739145061483,-500.0,0.00012876,2]
[352513331,1739145061492,-500.0,0.00012876,2]
[352513332,1739145061502,-1670.97,0.00012876,2]
[352513333,1739145061511,-151.0,0.00012876,2]
[352513334,1739145061521,-391.49690797,0.00012967,2]
[352513335,1739145061530,-7438.69753278,0.00013,2]
[352513336,1739145061539,-500.0,0.00013013,2]
[352513337,1739145061548,-609.05,0.00013013,2]
[352513338,1739145061557,-980.64,0.00013013,2]
[352513339,1739145061566,-4138.56,0.00013013,2]
[352513340,1739145061576,-3347.12,0.00013013,2]
[352513341,1739145061586,-500.0,0.00013013,2]
[352513342,1739145061596,-1077.38,0.00013013,2]
[352513343,1739145061605,-1692.6,0.00013013,2]
[352513344,1739145061615,-1270.45,0.00013013,2]
[352513345,1739145061624,-588.36,0.00013013,2]
[352513346,1739145061633,-15368.01,0.00013013,2]
[352513347,1739145061645,-500.0,0.00013013,2]
[352513348,1739145061654,-500.0,0.00013013,2]
[352513349,1739145061664,-4743.05,0.00013013,2]
[352513350,1739145061673,-712.27,0.00013013,2]
[352513351,1739145061682,-500.0,0.00013013,2]
[352513352,1739145061691,-693.08289182,0.00013013,2]
[352513353,1739145061709,-520.20710818,0.00013013,2]
[352513354,1739145061718,-522.27,0.00013013,2]
[352513355,1739145061728,-1282.22,0.00013013,2]
[352513356,1739145061737,-500.0,0.00013013,2]
[352513357,1739145061747,-1561.77,0.00013013,2]
[352513358,1739145061756,-500.0,0.00013013,2]
[352513359,1739145061765,-690.2,0.00013013,2]
[352513360,1739145061777,-500.0,0.00013013,2]
[352513361,1739145061786,-500.0,0.00013013,2]
[352513362,1739145061796,-500.0,0.00013013,2]
[352513363,1739145061805,-500.0,0.00013013,2]
[352513364,1739145061814,-1670.97,0.00013013,2]
[352513365,1739145061824,-500.0,0.0001315,2]
[352513366,1739145061833,-151.0,0.0001315,2]
[352513367,1739145061843,-609.05,0.0001315,2]
[352513368,1739145061852,-151.0,0.0001315,2]
[352513369,1739145061861,-151.0,0.0001315,2]
[352513370,1739145061873,-176.337049,0.0001315,2]
[352513371,1739145061882,-176.337049,0.0001315,2]
[352513372,1739145061892,-151.0,0.0001315,2]
[352513373,1739145061903,-980.64,0.0001315,2]
[352513374,1739145061914,-4138.56,0.0001315,2]
[352513375,1739145061924,-3347.12,0.0001315,2]
[352513376,1739145061934,-500.0,0.0001315,2]
[352513377,1739145061946,-1077.38,0.0001315,2]
[352513378,1739145061957,-1692.6,0.0001315,2]
[352513379,1739145061967,-1270.45,0.0001315,2]
[352513380,1739145061977,-588.36,0.0001315,2]
[352513381,1739145061987,-5995.52879382,0.0001315,2]
[352513382,1739145062161,-1708.17481012,0.0001315,2]
[352513383,1739145062218,-7657.34161005,0.0001315,2]
[352513384,1739145062230,-6.96478601,0.0001315,2]
[352513385,1739145062240,-500.0,0.0001315,2]
[352513386,1739145062250,-500.0,0.0001315,2]
[352513387,1739145062259,-2171.91521609,0.0001315,2]
[352513388,1739145062332,-500.0,0.00010958,2]
[352513389,1739145062341,-500.0,0.00011095,2]
[352513390,1739145062351,-500.0,0.00011232,2]
[352513391,1739145062360,-500.0,0.00011369,2]
[352513392,1739145062369,-500.0,0.00011506,2]
[352513393,1739145062379,-500.0,0.00011643,2]
[352513394,1739145062388,-381.19312037,0.0001178,2]
[352513395,1739145062400,-118.80687963,0.0001178,2]
[352513396,1739145062410,-263.1213049,0.00011917,2]
[352513397,1739145062423,-236.8786951,0.00011917,2]
[352513398,1739145062433,-500.0,0.00012054,2]
[352513399,1739145062443,-2571.13478391,0.0001315,2]
[352513400,1739145062453,-712.27,0.0001315,2]
[352513401,1739145062463,-500.0,0.0001315,2]
[352513402,1739145062473,-1213.29,0.0001315,2]
[352513403,1739145062483,-522.27,0.0001315,2]
[352513404,1739145062494,-347.1589587,0.0001315,2]
[352513405,1739145062507,-935.0610413,0.0001315,2]
[352513406,1739145062518,-500.0,0.0001315,2]
[352513407,1739145062527,-151.0,0.0001315,2]
[352513408,1739145062537,-1561.77,0.0001315,2]
[352513409,1739145062547,-151.0,0.0001315,2]
[352513410,1739145062556,-500.0,0.0001315,2]
[352513411,1739145062566,-690.2,0.0001315,2]
[352513412,1739145062576,-500.0,0.0001315,2]
[352513413,1739145062586,-500.0,0.0001315,2]
[352513414,1739145062595,-151.0,0.0001315,2]
[352513415,1739145062604,-500.0,0.0001315,2]
[352513416,1739145062613,-500.0,0.0001315,2]
[352513417,1739145062622,-151.0,0.0001315,2]
[352513418,1739145062632,-1670.97,0.0001315,2]
[352513419,1739145062642,-151.0,0.00013151,2]
[352513420,1739145062652,-600.0,0.00013231,2]
[352513421,1739145062661,-587.0,0.00013231,2]
[352513422,1739145062671,-1975.0,0.0001325,2]
[352513423,1739145062680,-537.0,0.0001325,2]